bitfinex-derivatives/quotes_SOLF0:USTF0_20241231
["timestamp","ask_amount","ask_price","bid_price","bid_amount"]
[1735621694721,2.6426,189.52,189.48,2.6431]
[1735621694923,2.6426,189.52,189.47,10.42538834]
[1735621695925,2.6427,189.51,189.47,7.78218834]
[1735621696119,7.78218834,189.53,189.47,7.78218834]
[1735621697424,2.643,189.49,189.47,7.78218834]
[1735621697621,7.78218834,189.51,189.45,7.78218834]
[1735621698022,2.6432,189.48,189.45,7.78218834]
[1735621700427,7.78218834,189.51,189.45,7.78218834]
[1735621700628,2.6433,189.47,189.45,7.78218834]
[1735621703928,2.6431,189.48,189.45,7.78218834]
[1735621704127,7.78218834,189.51,189.45,10.42568834]
[1735621704338,3.02,189.52,189.45,10.42568834]
[1735621705628,2.6428,189.5,189.46,2.6434]
[1735621707231,2.6428,189.5,189.45,10.42568834]
[1735621708533,2.6428,189.5,189.45,7.78218834]
[1735621708735,2.6426,189.52,189.47,10.42538834]
[1735621711235,7.17282977,189.54,189.47,10.42538834]
[1735621711437,2.6426,189.52,189.47,10.42538834]
[1735621714544,2.6426,189.52,189.49,7.78218834]
[1735621717644,2.6427,189.51,189.49,7.78218834]
[1735621723349,2.6427,189.51,189.46,5.6633]
[1735621723644,7.78218834,189.51,189.44,7.78218834]
[1735621724046,2.643,189.49,189.44,7.78218834]
[1735621724349,7.78218834,189.51,189.44,7.78218834]
[1735621724649,7.78218834,189.49,189.41,1.5761]
[1735621724851,7.78218834,189.49,189.4,3.02]
[1735621725046,7.78218834,189.47,189.41,7.78218834]
[1735621725247,7.78218834,189.45,189.38,1.5064]
[1735621725547,7.78218834,189.45,189.38,7.78218834]
[1735621726750,2.6438,189.43,189.38,7.78218834]
[1735621726946,7.78218834,189.45,189.38,7.78218834]
[1735621727246,7.78218834,189.43,189.37,7.78218834]
[1735621727547,7.78218834,189.41,189.35,7.78218834]
[1735621728346,2.6445,189.38,189.35,7.78218834]
[1735621731247,10.80218834,189.41,189.35,7.78218834]
[1735621731454,2.6448,189.36,189.33,7.78218834]
[1735621731953,2.6449,189.35,189.33,7.78218834]
[1735621734351,7.78218834,189.39,189.33,7.78218834]
[1735621734546,2.6446,189.37,189.33,7.78218834]
[1735621734950,7.78218834,189.41,189.35,7.78218834]
[1735621737654,2.6445,189.39,189.35,7.78218834]
[1735621738055,10.42638834,189.41,189.35,10.42708834]
[1735621738256,1.5764,189.44,189.37,7.78218834]
[1735621738853,2.6439,189.42,189.37,7.78218834]
[1735621739252,1.5764,189.44,189.37,7.78218834]
[1735621739457,2.6444,189.39,189.35,7.78218834]
[1735621739657,7.78218834,189.43,189.35,7.78218834]
[1735621741751,7.78218834,189.41,189.35,7.78218834]
[1735621741958,2.6445,189.39,189.35,7.78218834]
[1735621743260,10.80218834,189.41,189.28,1.6118]
[1735621743456,2.6447,189.37,189.32,7.78218834]
[1735621743654,7.78218834,189.39,189.32,7.78218834]
[1735621744055,2.6451,189.34,189.32,7.78218834]
[1735621745561,2.6447,189.37,189.32,7.78218834]
[1735621745761,7.78218834,189.39,189.32,7.78218834]
[1735621746861,2.6448,189.37,189.32,10.42748834]
[1735621747362,2.6451,189.35,189.32,7.78218834]
[1735621747659,7.78218834,189.39,189.32,7.78218834]
[1735621749461,2.6447,189.37,189.32,7.78218834]
[1735621749659,7.78218834,189.37,189.28,4.6318]
[1735621749956,2.6458,189.29,189.24,7.78218834]
[1735621750158,10.80218834,189.31,189.24,7.78218834]
[1735621750656,7.78218834,189.29,189.19,4.5208]
[1735621750862,7.78218834,189.29,189.23,7.78218834]
[1735621751054,2.646,189.28,189.23,7.78218834]
[1735621751252,3.02,189.31,189.23,7.78218834]
[1735621751253,10.80218834,189.31,189.23,7.78218834]
[1735621751456,10.80218834,189.31,189.25,7.78218834]
[1735621752463,2.6456,189.3,189.25,7.78218834]
[1735621752958,3.02,189.31,189.25,7.78218834]
[1735621753159,1.5503,189.36,189.19,4.5208]
[1735621753160,2.6452,189.33,189.27,10.42818834]
[1735621754869,2.6452,189.33,189.27,7.78218834]
[1735621755777,7.78218834,189.33,189.27,7.78218834]
[1735621756075,7.78218834,189.31,189.25,3.02]
[1735621756272,2.646,189.28,189.24,7.78218834]
[1735621756775,7.78218834,189.31,189.24,7.78218834]
[1735621756972,7.78218834,189.25,189.02,223.9536201]
[1735621757174,7.78218834,189.23,189.16,7.78218834]
[1735621757371,7.78218834,189.23,189.15,7.78218834]
[1735621758076,3.02,189.25,189.15,7.78218834]
[1735621758277,7.78218834,189.23,189.15,7.78218834]
[1735621759271,2.6473,189.19,189.15,7.78218834]
[1735621761278,2.6468,189.22,189.17,7.78218834]
[1735621762981,2.6466,189.23,189.17,10.42958834]
[1735621764471,2.6466,189.23,189.17,7.78218834]
[1735621764779,2.6466,189.23,189.18,2.6473]
[1735621768382,2.6469,189.21,189.17,7.78218834]
[1735621768579,7.78218834,189.23,189.15,7.78218834]
[1735621769683,2.647,189.21,189.15,10.42988834]
[1735621770585,7.78218834,189.22,189.15,10.42988834]
[1735621770788,2.6471,189.2,189.15,10.42988834]
[1735621771485,2.6472,189.19,189.15,10.42988834]
[1735621771686,7.78218834,189.22,189.15,7.78218834]
[1735621771882,7.78218834,189.2,189.15,7.78218834]
[1735621772184,10.80218834,189.2,189.13,7.78218834]
[1735621772387,3.02,189.2,189.13,7.78218834]
[1735621772579,10.80218834,189.2,189.13,7.78218834]
[1735621773686,2.6473,189.18,189.13,7.78218834]
[1735621777088,2.6473,189.18,189.13,10.43018834]
[1735621779793,2.6472,189.19,189.15,7.78218834]
[1735621782191,3.02,189.21,189.15,7.78218834]
[1735621782496,2.6473,189.18,189.15,7.78218834]
[1735621787100,3.02,189.24,189.17,7.78218834]
[1735621787297,3.02,189.24,189.19,7.78218834]
[1735621787698,7.78218834,189.26,189.19,7.78218834]
[1735621787891,29.27128625,189.27,189.19,7.78218834]
[1735621788096,3.02,189.26,189.21,7.78218834]
[1735621788297,5.6662,189.26,189.21,7.78218834]
[1735621789002,2.6462,189.26,189.21,7.78218834]
[1735621789801,2.6463,189.25,189.21,7.78218834]
[1735621790995,2.6463,189.25,189.19,2.6471]
[1735621791201,2.6463,189.25,189.2,7.78218834]
[1735621794000,2.6463,189.26,189.22,7.78218834]
[1735621794201,10.94478834,189.29,189.22,7.78218834]
[1735621794395,9.33068834,189.29,189.22,7.78218834]
[1735621794794,2.6462,189.27,189.22,7.78218834]
[1735621795006,9.33068834,189.29,189.22,7.78218834]
[1735621796104,12.35068834,189.29,189.22,7.78218834]
[1735621796507,2.6462,189.26,189.22,7.78218834]
[1735621798403,10.80218834,189.29,189.22,7.78218834]
[1735621798603,2.646,189.27,189.22,7.78218834]
[1735621801602,2.6462,189.26,189.22,7.78218834]
[1735621802102,2.6459,189.29,189.24,7.78218834]
[1735621802301,3.02,189.32,189.26,7.78218834]
[1735621802502,7.78218834,189.31,189.24,7.78218834]
[1735621804207,2.646,189.28,189.24,7.78218834]
[1735621804705,2.6458,189.29,189.24,7.78218834]
[1735621804906,7.78218834,189.31,189.24,7.78218834]
[1735621806407,2.646,189.28,189.24,7.78218834]
[1735621806707,7.78218834,189.29,189.22,7.78218834]
[1735621807006,2.6463,189.26,189.24,7.78218834]
[1735621807208,7.78218834,189.31,189.24,7.78218834]
[1735621808508,2.6466,189.23,189.22,7.78218834]
[1735621808807,7.78218834,189.29,189.22,7.78218834]
[1735621809007,2.6464,189.25,189.22,7.78218834]
[1735621809703,2.6462,189.26,189.22,7.78218834]
[1735621809906,2.6462,189.26,189.24,7.78218834]
[1735621811909,2.6463,189.25,189.24,7.78218834]
[1735621812509,2.6463,189.25,189.21,2.6468]
[1735621812706,2.6465,189.24,189.22,7.78218834]
[1735621816208,2.6463,189.26,189.22,7.78218834]
[1735621816511,7.78218834,189.29,189.22,7.78218834]
[1735621818505,2.6462,189.26,189.22,7.78218834]
[1735621820110,2.6465,189.24,189.22,7.78218834]
[1735621820518,2.6465,189.24,189.2,9.29248834]
[1735621822110,2.6465,189.24,189.22,7.78218834]
[1735621822309,2.6463,189.26,189.22,7.78218834]
[1735621823419,2.6463,189.26,189.22,10.42888834]
[1735621824820,2.6463,189.26,189.22,7.78218834]
[1735621826221,2.6463,189.25,189.22,7.78218834]
[1735621826913,2.6465,189.24,189.22,7.78218834]
[1735621832423,2.6466,189.23,189.2,9.29248834]
[1735621833928,2.6465,189.24,189.2,11.93948834]
[1735621834325,2.6465,189.24,189.22,7.78218834]
[1735621835119,3.02,189.27,189.22,7.78218834]
[1735621835325,2.6466,189.23,189.22,7.78218834]
[1735621835523,2.6466,189.23,189.2,9.29248834]
[1735621835920,2.6463,189.25,189.22,7.78218834]
[1735621838831,2.6462,189.26,189.22,7.78218834]
[1735621842537,2.6463,189.25,189.22,7.78218834]
[1735621844543,2.6466,189.23,189.2,7.78218834]
[1735621845543,6.1507,189.27,189.2,7.78218834]
[1735621845736,2.6468,189.22,189.2,7.78218834]
[1735621845937,10.12166719,189.27,189.2,7.78218834]
[1735621846139,6.1507,189.27,189.2,7.78218834]
[1735621848248,2.6463,189.25,189.2,7.78218834]
[1735621848448,2.6463,189.25,189.22,7.78218834]
[1735621856257,2.6463,189.25,189.2,2.647]
[1735621856453,2.6463,189.25,189.2,10.42918834]
[1735621868465,2.6463,189.25,189.2,2.647]
[1735621868667,2.6463,189.25,189.21,7.78218834]
[1735621869165,2.6463,189.25,189.2,2.647]
[1735621869464,2.6463,189.25,189.2,10.42918834]
[1735621870859,6.1507,189.27,189.2,10.42918834]
[1735621871064,2.6469,189.21,189.17,2.6474]
[1735621871455,2.6469,189.21,189.17,10.42958834]
[1735621872064,2.647,189.2,189.17,10.42958834]
[1735621872265,10.80218834,189.22,189.13,1.4696]
[1735621872454,3.02,189.21,189.14,7.78218834]
[1735621872659,3.02,189.21,189.13,1.4696]
[1735621872860,3.02,189.21,189.14,7.78218834]
[1735621873167,2.6474,189.18,189.14,7.78218834]
[1735621873666,7.78218834,189.18,189.12,7.78218834]
[1735621873867,7.78218834,189.18,189.08,33.9177509]
[1735621874060,7.78218834,189.18,189.11,7.78218834]
[1735621874663,7.78218834,189.16,189.11,7.78218834]
[1735621874865,2.6479,189.14,189.11,7.78218834]
[1735621875166,10.80218834,189.16,189.11,7.78218834]
[1735621875367,2.648,189.13,189.11,7.78218834]
[1735621875959,2.648,189.13,189.09,7.78218834]
[1735621876269,10.80218834,189.16,189.09,7.78218834]
[1735621876872,7.78218834,189.14,189.09,7.78218834]
[1735621877364,3.02,189.16,189.09,7.78218834]
[1735621877564,3.02,189.16,189.11,7.78218834]
[1735621878168,5.6676,189.16,189.11,7.78218834]
[1735621879170,2.6479,189.14,189.09,7.78218834]
[1735621880967,10.80218834,189.16,189.09,7.78218834]
[1735621881173,2.6479,189.14,189.09,7.78218834]
[1735621884067,2.6477,189.16,189.11,7.78218834]
[1735621884270,10.80218834,189.18,189.11,7.78218834]
[1735621885671,2.6478,189.15,189.11,7.78218834]
[1735621888076,2.6478,189.15,189.1,2.6484]
[1735621888277,2.6478,189.15,189.1,10.43058834]
[1735621891675,7.78218834,189.13,189.06,7.78218834]
[1735621892076,3.02,189.12,189.06,7.78218834]
[1735621892978,2.6487,189.08,189.03,2.6493]
[1735621893177,3.02,189.12,189.05,7.78218834]
[1735621895783,2.6488,189.08,189.05,7.78218834]
[1735621896584,2.6488,189.07,189.05,7.78218834]
[1735621897386,2.649,189.06,189.05,7.78218834]
[1735621898386,2.6492,189.05,189.03,7.78218834]
[1735621899179,7.78218834,189.09,189.03,7.78218834]
[1735621899386,2.649,189.06,189.03,7.78218834]
[1735621899783,3.02,189.12,189.05,7.78218834]
[1735621899784,2.6488,189.08,189.05,7.78218834]
[1735621900687,2.6486,189.09,189.05,7.78218834]
[1735621905093,3.02,189.12,189.05,7.78218834]
[1735621905290,3.02,189.14,189.07,7.78218834]
[1735621905491,10.80218834,189.14,189.07,7.78218834]
[1735621905695,2.6482,189.12,189.07,10.43098834]
[1735621906995,2.6482,189.12,189.07,7.78218834]
[1735621907590,2.6484,189.11,189.07,7.78218834]
[1735621909098,7.78218834,189.16,189.09,7.78218834]
[1735621909695,3.02,189.17,189.09,7.78218834]
[1735621909999,7.78218834,189.16,189.09,7.78218834]
[1735621910692,2.648,189.14,189.09,7.78218834]
[1735621910891,7.78218834,189.16,189.09,7.78218834]
[1735621911501,2.648,189.13,189.09,7.78218834]
[1735621912398,7.78218834,189.16,189.09,7.78218834]
[1735621912601,2.6481,189.12,189.09,7.78218834]
[1735621913605,7.78218834,189.16,189.09,7.78218834]
[1735621913798,7.78218834,189.14,189.07,7.78218834]
[1735621914803,7.78218834,189.14,189.05,2.9519]
[1735621915003,7.78218834,189.14,189.08,7.78218834]
[1735621915207,2.6485,189.1,189.08,7.78218834]
[1735621917303,32.28748625,189.18,189.08,10.43088834]
[1735621917608,43.08967459,189.18,189.12,7.78218834]
[1735621918103,2.6479,189.14,189.12,7.78218834]
[1735621922506,2.6479,189.14,189.1,7.78218834]
[1735621925310,13.81838834,189.18,189.1,7.78218834]
[1735621925610,13.81838834,189.18,189.08,2.6487]
[1735621925611,7.78218834,189.16,189.08,7.78218834]
[1735621926004,2.6482,189.12,189.08,7.78218834]
[1735621926407,2.6482,189.12,189.1,7.78218834]
[1735621926608,7.78218834,189.16,189.1,7.78218834]
[1735621927208,2.648,189.13,189.1,7.78218834]
[1735621928012,7.78218834,189.16,189.1,7.78218834]
[1735621928205,2.6483,189.11,189.1,7.78218834]
[1735621928910,2.6484,189.1,189.08,7.78218834]
[1735621930307,2.6486,189.09,189.08,7.78218834]
[1735621931411,7.78218834,189.16,189.08,7.78218834]
[1735621932412,2.6484,189.11,189.08,7.78218834]
[1735621933915,10.00979255,189.18,189.1,7.78218834]
[1735621934111,7.78218834,189.17,189.1,7.78218834]
[1735621934519,2.648,189.14,189.09,2.6485]
[1735621934716,7.78218834,189.17,189.1,7.78218834]
[1735621935014,2.6483,189.12,189.07,2.6488]
[1735621935212,7.78218834,189.15,189.08,7.78218834]
[1735621935410,7.78218834,189.13,189.05,1.4819]
[1735621935611,7.78218834,189.13,189.06,7.78218834]
[1735621935612,2.6488,189.08,189.06,7.78218834]
[1735621937018,2.6488,189.07,189.04,7.78218834]
[1735621937317,7.78218834,189.11,189.04,7.78218834]
[1735621937717,2.649,189.07,189.04,7.78218834]
[1735621937919,7.78218834,189.11,189.04,7.78218834]
[1735621938613,2.6486,189.09,189.04,7.78218834]
[1735621938821,9.34088834,189.11,189.04,7.78218834]
[1735621939818,2.6488,189.08,189.04,7.78218834]
[1735621940021,9.34088834,189.11,189.04,7.78218834]
[1735621941423,2.6486,189.09,189.04,7.78218834]
[1735621945327,9.34088834,189.11,189.04,7.78218834]
[1735621945825,2.6486,189.09,189.04,7.78218834]
[1735621946025,9.34088834,189.11,189.04,7.78218834]
[1735621946923,2.6488,189.08,189.04,7.78218834]
[1735621949425,2.6486,189.09,189.04,10.43138834]
[1735621949623,1.5587,189.11,189.06,7.78218834]
[1735621949828,2.6482,189.12,189.08,7.78218834]
[1735621953333,2.6483,189.11,189.08,7.78218834]
[1735621957636,16.6189099,189.17,189.1,7.78218834]
[1735621958534,2.6477,189.15,189.1,7.78218834]
[1735621959634,37.05347459,189.2,189.12,7.78218834]
[1735621959836,37.05347459,189.2,189.11,3.02]
[1735621959837,37.05347459,189.2,189.14,7.78218834]
[1735621960539,7.78218834,189.2,189.14,7.78218834]
[1735621961439,2.6473,189.18,189.14,7.78218834]
[1735621963439,3.02,189.22,189.14,7.78218834]
[1735621963641,2.6469,189.21,189.16,7.78218834]
[1735621965141,7.78218834,189.23,189.15,2.6477]
[1735621965443,7.78218834,189.21,189.15,7.78218834]
[1735621965642,7.78218834,189.23,189.17,7.78218834]
[1735621966040,3.026,189.25,189.17,7.78218834]
[1735621966041,7.78218834,189.25,189.19,7.78218834]
[1735621966238,2.6463,189.26,189.19,7.78218834]
[1735621966440,7.78218834,189.27,189.19,7.78218834]
[1735621967034,7.78218834,189.27,189.18,4.1604]
[1735621967244,7.78218834,189.25,189.18,1.5132]
[1735621967445,7.78218834,189.25,189.18,9.29538834]
[1735621968037,2.6467,189.22,189.18,9.29538834]
[1735621968344,7.78218834,189.25,189.18,9.29538834]
[1735621968945,2.6468,189.22,189.18,9.29538834]
[1735621974948,2.6468,189.22,189.18,11.94268834]
[1735621979651,7.78218834,189.26,189.18,11.94268834]
[1735621979951,2.6466,189.23,189.18,11.94268834]
[1735621981049,7.78218834,189.24,189.17,7.78218834]
[1735621981253,7.78218834,189.22,189.14,7.78218834]
[1735621981448,7.78218834,189.2,189.12,7.78218834]
[1735621981753,2.6476,189.17,189.12,10.43018834]
[1735621983350,2.6476,189.16,189.12,10.43018834]
[1735621984249,2.6473,189.18,189.14,10.42998834]
[1735621986256,2.6473,189.18,189.14,2.6478]
[1735621986546,2.6473,189.18,189.14,10.42998834]
[1735621986753,2.6472,189.19,189.14,10.42998834]
[1735621987151,7.78218834,189.2,189.14,10.42998834]
[1735621987654,2.6472,189.19,189.14,10.42998834]
[1735621990758,7.78218834,189.2,189.14,7.78218834]
[1735621990952,10.42918834,189.2,189.15,2.6477]
[1735621991152,2.647,189.2,189.15,2.6477]
[1735621992054,2.6469,189.21,189.16,10.42968834]
[1735621992849,1.5831,189.22,189.18,2.6473]
[1735621993156,7.1252,189.23,189.18,2.6473]
[1735621994862,4.4786,189.23,189.16,7.78218834]
[1735621995055,7.78218834,189.22,189.16,7.78218834]
[1735621996661,2.6471,189.2,189.16,7.78218834]
[1735621998762,2.6471,189.2,189.15,2.6477]
[1735621998968,2.6471,189.2,189.15,10.42988834]
[1735622000070,2.6472,189.19,189.15,10.42988834]
[1735622000870,2.6472,189.19,189.15,2.6477]
[1735622001164,2.6472,189.19,189.15,10.42988834]
[1735622001764,7.78218834,189.22,189.13,2.6479]
[1735622001968,4.4786,189.23,189.13,2.6479]
[1735622001969,7.78218834,189.2,189.13,7.78218834]
[1735622002671,2.6475,189.17,189.13,7.78218834]
[1735622003268,7.78218834,189.2,189.12,7.78218834]
[1735622003560,7.78218834,189.18,189.12,7.78218834]
[1735622004561,2.6478,189.15,189.12,7.78218834]
[1735622005263,2.6479,189.14,189.1,3.0]
[1735622005468,2.6479,189.14,189.11,7.78218834]
[1735622006468,2.6477,189.15,189.11,7.78218834]
[1735622008065,2.648,189.13,189.11,7.78218834]
[1735622008267,7.78218834,189.16,189.09,7.78218834]
[1735622008468,7.78218834,189.16,189.07,7.78218834]
[1735622009468,2.6482,189.12,189.07,7.78218834]
[1735622010168,2.6482,189.12,189.08,2.6487]
[1735622012472,2.6482,189.12,189.07,7.78218834]
[1735622012473,7.78218834,189.16,189.07,7.78218834]
[1735622012673,2.6483,189.11,189.07,10.43098834]
[1735622013171,2.6483,189.11,189.07,2.6488]
[1735622013566,2.6483,189.11,189.08,7.78218834]
[1735622014973,4.4788,189.17,189.1,7.78218834]
[1735622015173,12.26098834,189.17,189.1,7.78218834]
[1735622015768,2.6477,189.15,189.1,10.43048834]
[1735622017075,2.6477,189.15,189.1,2.6483]
[1735622017376,2.6477,189.15,189.1,10.43048834]
[1735622018875,2.6479,189.14,189.09,2.6486]
[1735622021277,2.6479,189.14,189.08,7.78218834]
[1735622021278,2.648,189.13,189.08,10.43088834]
[1735622024086,2.6483,189.11,189.06,40.06746636]
[1735622024279,2.6483,189.11,189.07,7.78218834]
[1735622024681,7.78218834,189.14,189.03,1.5489]
[1735622024985,2.6485,189.1,189.06,7.78218834]
[1735622026384,7.78218834,189.14,189.08,7.78218834]
[1735622027288,2.6479,189.14,189.08,7.78218834]
[1735622027485,7.78218834,189.15,189.08,7.78218834]
[1735622027989,2.648,189.13,189.08,7.78218834]
[1735622028184,1.4788,189.17,189.1,7.78218834]
[1735622029589,2.6477,189.15,189.1,7.78218834]
[1735622029988,1.4788,189.17,189.1,7.78218834]
[1735622030293,2.6479,189.14,189.1,7.78218834]
[1735622032988,2.6477,189.15,189.1,10.43058834]
[1735622035186,2.6479,189.14,189.1,10.43058834]
[1735622041897,2.6479,189.14,189.11,2.6483]
[1735622047200,2.6477,189.16,189.11,2.6483]
[1735622047807,11.75572148,189.19,189.11,2.6483]
[1735622047996,2.6478,189.15,189.11,2.6483]
[1735622049498,2.6476,189.16,189.12,2.6481]
[1735622049800,2.6476,189.16,189.12,10.43028834]
[1735622051801,2.6476,189.16,189.12,2.6481]
[1735622054909,2.6476,189.16,189.11,7.78218834]
[1735622055106,2.6476,189.16,189.11,10.43038834]
[1735622058920,2.6476,189.16,189.08,1.5468]
[1735622058921,7.78218834,189.17,189.08,1.5468]
[1735622059119,7.78218834,189.15,189.08,9.32898834]
[1735622059323,10.78218834,189.15,189.08,9.32898834]
[1735622059726,2.6484,189.11,189.07,7.78218834]
[1735622060618,2.6484,189.11,189.06,2.6488]
[1735622060925,2.6484,189.11,189.07,7.78218834]
[1735622061322,2.6485,189.1,189.07,7.78218834]
[1735622064029,2.6483,189.12,189.09,7.78218834]
[1735622067130,3.0,189.16,189.11,7.78218834]
[1735622067336,7.31782156,189.18,189.11,7.78218834]
[1735622067631,11.29141181,189.18,189.13,7.78218834]
[1735622067827,7.31782156,189.18,189.13,7.78218834]
[1735622068229,2.6475,189.17,189.13,7.78218834]
[1735622070236,2.6476,189.16,189.13,7.78218834]
[1735622072336,2.6478,189.15,189.1,4.2091]
[1735622072540,7.78218834,189.17,189.11,7.78218834]
[1735622073444,2.6479,189.14,189.11,7.78218834]
[1735622075238,10.78218834,189.17,189.11,7.78218834]
[1735622075444,10.78218834,189.17,189.09,7.78218834]
[1735622076446,2.648,189.13,189.09,7.78218834]
[1735622077348,2.6483,189.11,189.09,7.78218834]
[1735622080852,2.6484,189.1,189.09,7.78218834]
[1735622081052,7.78218834,189.15,189.09,7.78218834]
[1735622082152,7.78218834,189.15,189.06,2.649]
[1735622082355,7.78218834,189.13,189.06,2.649]
[1735622082554,3.0,189.12,189.06,10.43118834]
[1735622083453,2.6484,189.1,189.06,10.43118834]
[1735622085053,2.6487,189.08,189.01,41.59851975]
[1735622085252,7.78218834,189.11,189.04,7.78218834]
[1735622086454,2.6488,189.08,189.04,7.78218834]
[1735622087154,2.6489,189.07,189.04,7.78218834]
[1735622089355,3.97496214,189.13,189.04,7.78218834]
[1735622089559,2.6484,189.11,189.06,2.649]
[1735622090053,2.6486,189.09,189.04,10.43138834]
[1735622090355,10.78218834,189.12,189.04,7.78218834]
[1735622090658,2.6486,189.09,189.04,7.78218834]
[1735622090954,10.78218834,189.12,189.06,7.78218834]
[1735622091657,2.6484,189.1,189.06,7.78218834]
[1735622091957,10.78218834,189.12,189.06,7.78218834]
[1735622092359,10.78218834,189.12,189.06,10.43118834]
[1735622092956,2.6484,189.11,189.06,7.78218834]
[1735622093959,2.6484,189.1,189.06,7.78218834]
[1735622094754,10.78218834,189.12,189.06,7.78218834]
[1735622094962,6.1584,189.16,189.08,7.78218834]
[1735622095160,7.78218834,189.15,189.08,7.78218834]
[1735622095853,2.6481,189.13,189.08,10.43088834]
[1735622097155,2.6481,189.13,189.08,7.78218834]
[1735622097969,2.6482,189.12,189.08,7.78218834]
[1735622100158,6.1584,189.16,189.08,10.43088834]
[1735622100463,10.94058834,189.16,189.08,7.78218834]
[1735622100862,2.6481,189.13,189.08,10.43088834]
[1735622102156,3.0,189.17,189.1,7.78218834]
[1735622102660,2.6473,189.18,189.13,2.6479]
[1735622102865,2.6473,189.18,189.14,7.78218834]
[1735622103563,7.31782156,189.2,189.16,7.78218834]
[1735622103765,7.78218834,189.23,189.16,7.78218834]
[1735622104663,7.78218834,189.21,189.11,1.5447]
[1735622104869,7.78218834,189.21,189.14,7.78218834]
[1735622105765,2.6472,189.19,189.14,7.78218834]
[1735622107659,2.6474,189.18,189.14,7.78218834]
[1735622108063,2.6474,189.17,189.14,7.78218834]
[1735622108259,2.6474,189.17,189.12,10.43018834]
[1735622108662,7.78218834,189.17,189.07,7.19276127]
[1735622108863,7.78218834,189.17,189.1,7.78218834]
[1735622109354,2.6479,189.14,189.1,7.78218834]
[1735622109560,7.78218834,189.15,189.08,7.78218834]
[1735622109955,2.648,189.13,189.08,7.78218834]
[1735622110756,2.6483,189.11,189.08,7.78218834]
[1735622111369,2.6485,189.1,189.06,1.5133]
[1735622111562,2.6485,189.1,189.06,9.29548834]
[1735622113168,7.78218834,189.13,189.06,9.29548834]
[1735622113372,2.6483,189.12,189.07,2.6488]
[1735622114170,2.6485,189.1,189.06,9.29548834]
[1735622116265,2.6486,189.09,189.06,7.78218834]
[1735622116571,7.78218834,189.13,189.06,7.78218834]
[1735622116772,9.34448834,189.13,189.06,7.78218834]
[1735622117663,2.6487,189.08,189.06,7.78218834]
[1735622117871,2.6487,189.08,189.04,7.78218834]
[1735622119170,7.78218834,189.11,189.02,2.6495]
[1735622119370,2.6489,189.07,189.03,7.78218834]
[1735622119974,2.649,189.06,189.01,2.6497]
[1735622120273,2.649,189.06,189.0,1.5001]
[1735622120274,7.78218834,189.07,189.0,1.5001]
[1735622120467,2.6497,189.02,188.98,7.78218834]
[1735622120662,3.0,189.04,188.98,7.78218834]
[1735622121073,7.78218834,189.03,188.93,1.5047]
[1735622121271,7.78218834,189.01,188.94,7.78218834]
[1735622122262,7.78218834,189.01,188.93,1.5047]
[1735622122466,2.6501,188.99,188.94,7.78218834]
[1735622122962,2.6502,188.98,188.92,7.78218834]
[1735622123168,7.78218834,188.99,188.92,7.78218834]
[1735622123364,10.78218834,188.99,188.92,7.78218834]
[1735622123770,7.78218834,188.97,188.9,7.78218834]
[1735622124573,10.43258834,188.97,188.9,7.78218834]
[1735622124770,7.78218834,188.97,188.9,7.78218834]
[1735622125169,7.78218834,188.97,188.89,2.6513]
[1735622125369,7.78218834,188.97,188.9,7.78218834]
[1735622126772,10.78218834,188.99,188.92,10.43308834]
[1735622127472,2.6502,188.98,188.92,10.43308834]
[1735622127673,10.78218834,188.99,188.92,10.43308834]
[1735622129575,3.0,188.99,188.92,7.78218834]
[1735622129776,3.0,188.99,188.94,7.78218834]
[1735622130476,3.0,188.99,188.96,2.6504]
[1735622131073,3.0,188.99,188.94,7.78218834]
[1735622131275,3.0,188.99,188.94,10.43278834]
[1735622131983,2.6497,189.01,188.94,10.43278834]
[1735622132480,2.6499,189.0,188.94,10.43278834]
[1735622133981,7.78218834,189.02,188.94,10.43278834]
[1735622133982,2.65,188.99,188.94,10.43278834]
[1735622134777,2.65,188.99,188.94,7.78218834]
[1735622134983,2.6504,188.97,188.94,7.78218834]
[1735622135579,2.6504,188.96,188.94,7.78218834]
[1735622135886,7.78218834,189.0,188.94,7.78218834]
[1735622136779,2.6504,188.96,188.91,2.651]
[1735622136974,2.6504,188.96,188.92,7.78218834]
[1735622139886,7.78218834,188.98,188.92,7.78218834]
[1735622140286,2.6508,188.93,188.9,7.78218834]
[1735622142385,2.6509,188.92,188.9,7.78218834]
[1735622144182,7.78218834,188.96,188.9,7.78218834]